lending/lending_fUSD_20240504
["ID","MTS","AMOUNT","RATE_DAILY","PERIOD"]
[325399092,1714825838949,-150.0,0.00012776,2]
[325399093,1714825838959,-150.0,0.00012777,2]
[325399094,1714825838968,-150.0,0.00012788,2]
[325399095,1714825838977,-150.0,0.0001279,2]
[325399096,1714825838986,-150.0,0.00012796,2]
[325399097,1714825838996,-200.0,0.000128,4]
[325399098,1714825839011,-150.0,0.00012802,2]
[325399099,1714825839021,-169.7463935,0.00012805,2]
[325399100,1714825839031,-150.0,0.00012821,2]
[325399101,1714825839040,-150.0,0.00012821,2]
[325399102,1714825839050,-150.0,0.00012822,2]
[325399103,1714825839060,-150.0,0.00012827,2]
[325399104,1714825839071,-300.0,0.0001283,2]
[325399105,1714825839083,-150.0,0.00012833,2]
[325399106,1714825839094,-150.0,0.00012836,2]
[325399107,1714825839105,-150.0,0.00012836,2]
[325399108,1714825839114,-150.0,0.00012839,2]
[325399109,1714825839123,-150.0,0.00012844,2]
[325399110,1714825839134,-150.0,0.00012844,2]
[325399111,1714825839144,-150.0,0.00012847,2]
[325399112,1714825839153,-150.0,0.00012849,2]
[325399113,1714825839163,-150.0,0.00012861,2]
[325399114,1714825839172,-150.0,0.00012861,2]
[325399115,1714825839181,-150.0,0.00012865,2]
[325399116,1714825839191,-382.95277325,0.00012866,2]
[325399117,1714825839200,-150.0,0.0001287,2]
[325399118,1714825839210,-150.0,0.00012871,2]
[325399119,1714825839219,-150.0,0.00012872,2]
[325399120,1714825839228,-150.0,0.00012877,2]
[325399121,1714825839237,-150.0,0.00012881,2]
[325399122,1714825839246,-150.0,0.00012885,2]
[325399123,1714825839255,-806.40716709,0.00012888,2]
[325399124,1714825839265,-150.0,0.00012889,2]
[325399125,1714825839274,-150.0,0.0001289,2]
[325399126,1714825839283,-150.0,0.00012891,2]
[325399127,1714825839292,-150.0,0.00012894,2]
[325399128,1714825839301,-150.0,0.00012895,2]
[325399129,1714825839311,-150.0,0.00012896,2]
[325399130,1714825839321,-500.0,0.000129,4]
[325399131,1714825839330,-150.0,0.00012901,2]
[325399132,1714825839339,-150.0,0.0001291,2]
[325399133,1714825839350,-300.0,0.00012911,2]
[325399134,1714825839359,-150.0,0.00012913,2]
[325399135,1714825839369,-150.0,0.00012914,2]
[325399136,1714825839379,-150.0,0.00012917,2]
[325399137,1714825839387,-150.0,0.00012918,2]
[325399138,1714825839396,-150.0,0.00012919,2]
[325399139,1714825839406,-150.0,0.0001292,2]
[325399140,1714825839415,-150.0,0.0001292,2]
[325399141,1714825839424,-150.0,0.00012921,2]
[325399142,1714825839433,-150.0,0.00012926,2]
[325399143,1714825839443,-150.0,0.00012927,2]
[325399144,1714825839454,-150.0,0.00012933,2]
[325399145,1714825839464,-250.36936653,0.00012935,2]
[325399146,1714825839473,-300.0,0.00012936,2]
[325399147,1714825839483,-150.0,0.00012938,2]
[325399148,1714825839493,-150.0,0.00012941,2]
[325399149,1714825839502,-150.0,0.00012945,2]
[325399150,1714825839511,-150.0,0.00012949,2]
[325399151,1714825839521,-150.0,0.0001295,2]
[325399152,1714825839530,-150.0,0.00012953,2]
[325399153,1714825839540,-150.0,0.00012957,2]
[325399154,1714825839549,-150.0,0.00012958,2]
[325399155,1714825839558,-150.0,0.00012958,2]
[325399156,1714825839568,-150.0,0.00012962,2]
[325399157,1714825839578,-150.0,0.00012963,2]
[325399158,1714825839587,-150.0,0.00012963,2]
[325399159,1714825839597,-150.0,0.00012967,2]
[325399160,1714825839606,-150.0,0.00012969,2]
[325399161,1714825839615,-150.0,0.0001297,2]
[325399162,1714825839624,-150.0,0.00012971,2]
[325399163,1714825839634,-150.0,0.00012976,2]
[325399164,1714825839643,-150.0,0.00012976,2]
[325399165,1714825839652,-150.0,0.00012976,2]
[325399166,1714825839662,-150.0,0.0001298,2]
[325399167,1714825839671,-150.0,0.00012981,2]
[325399168,1714825839680,-150.0,0.00012982,2]
[325399169,1714825839690,-150.0,0.00012983,2]
[325399170,1714825839699,-150.0,0.00012983,2]
[325399171,1714825839708,-150.0,0.00012984,2]
[325399172,1714825839718,-150.0,0.00012984,2]
[325399173,1714825839727,-150.0,0.00012985,2]
[325399174,1714825839736,-150.0,0.00012986,2]
[325399175,1714825839745,-710.5248768,0.00012987,2]
[325399176,1714825839755,-150.0,0.00012987,2]
[325399177,1714825839764,-150.0,0.00012987,2]
[325399178,1714825839773,-209.4259096,0.00012987,2]
[325399179,1714825839783,-38971.00139463,0.00012987,2]
[325399180,1714825839822,-636.63876241,0.00012987,2]
[325399181,1714825841926,-392.64534936,0.00012683,2]
[325399182,1714825841938,-463.57890594,0.00012683,2]
[325399183,1714825841949,-853.81442822,0.00012683,2]
[325399184,1714825841958,-150.0,0.00012749,2]
[325399185,1714825841968,-150.0,0.00012809,2]
[325399186,1714825841977,-150.0,0.0001281,2]
[325399187,1714825841986,-3498.38014246,0.00012823,2]
[325399188,1714825842234,-150.0,0.00012841,2]
[325399189,1714825842244,-150.0,0.00012972,2]
[325399190,1714825842254,-2867.66457539,0.00012987,2]
[325399191,1714825842266,-907.36280926,0.00012987,2]
[325399192,1714825842282,-747.50167829,0.00012987,2]
[325399193,1714825842294,-687.41855489,0.00012987,2]
[325399194,1714825842305,-818.03842971,0.00012987,2]
[325399195,1714825842336,-712.54449098,0.00012987,2]
[325399205,1714825843846,-1.373e-05,0.00012987,2]
[325399206,1714825843859,-569.59474605,0.00012987,2]
[325399207,1714825843875,-758.48947756,0.00012987,2]
[325399208,1714825843884,-594.2125743,0.00012987,2]
[325399209,1714825843893,-1355.23154681,0.00012988,2]
[325399210,1714825843904,-750.50714684,0.00012988,2]
[325399211,1714825843958,-150.0,0.00012743,2]
[325399212,1714825843968,-150.0,0.00012835,2]
[325399213,1714825843977,-421.16359885,0.00012988,2]
[325399214,1714825844294,-623.02046054,0.00012988,2]
[325399215,1714825844304,-251.92445432,0.00012988,2]
[325399216,1714825844585,-150.0,0.00012886,2]
[325399217,1714825844594,-150.0,0.00012902,2]
[325399218,1714825844603,-447.54106514,0.00012988,2]
[325399219,1714825844626,-819.57533852,0.00012988,2]
[325399220,1714825844638,-477.487828,0.00012988,2]
[325399221,1714825844648,-173.162172,0.00012988,2]
[325399222,1714825844676,-448.49657002,0.00012988,2]
[325399223,1714825844685,-409.15399551,0.00012988,2]
[325399224,1714825844695,-747.62,0.0001299,2]
[325399225,1714825844703,-747.62,0.0001299,2]
[325399226,1714825844713,-150.0,0.00012992,2]
[325399227,1714825844722,-155.0,0.00012996,2]
[325399228,1714825844731,-161.59865266,0.00012996,2]
[325399229,1714825844741,-239.78212798,0.00012996,2]
[325399230,1714825844750,-377.0367828,0.00012996,2]
[325399231,1714825844759,-86.45164539,0.00012996,2]
[325399232,1714825844783,-69.14155582,0.00012996,2]
[325399233,1714825844792,-155.0,0.00012996,2]
[325399234,1714825844803,-224.99269189,0.00012996,2]
[325399235,1714825844812,-161.96755022,0.00012996,2]
[325399236,1714825844821,-11.84500207,0.00012996,2]
[325399237,1714825844833,-145.16258497,0.00012996,2]
[325399238,1714825844843,-148.61141503,0.00012996,2]
[325399239,1714825844854,-6.54817086,0.00012996,2]
[325399240,1714825844863,-155.00010177,0.00012997,2]
[325399241,1714825844873,-611.84739053,0.00012997,2]
[325399242,1714825844885,-316.4914853,0.00012997,2]
[325399243,1714825844895,-150.0,0.00012997,2]
[325399244,1714825844905,-128.13749482,0.00012998,2]
[325399245,1714825844916,-786.62513807,0.00012998,2]
[325399246,1714825845038,-282.87771268,0.00012998,2]
[325399247,1714825845049,-371.1948287,0.00012998,2]
[325399248,1714825845058,-190.07531516,0.00012998,2]
[325399250,1714825846731,-150.0,0.00012849,2]
[325399251,1714825846741,-691.8114838,0.00012998,2]
[325399252,1714825846752,-959.60639431,0.00012998,2]
[325399253,1714825846765,-111.5744734,0.00012998,2]
[325399254,1714825846775,-281.62325583,0.00012998,2]
[325399255,1714825846788,-359.48885558,0.00012998,2]
[325399256,1714825846810,-63.07768246,0.00012998,2]
[325399257,1714825846821,-300.0,0.00012998,2]
[325399258,1714825846830,-1151.7348996,0.00012999,2]
[325399259,1714825846840,-207.13818223,0.00012999,2]
[325399260,1714825846851,-638.92505861,0.00012999,2]
[325399261,1714825846860,-1071.84695952,0.00012999,3]
[325399262,1714825846871,-150.0,0.00012999,2]
[325399263,1714825846880,-325.07118162,0.00012999,2]
[325399264,1714825846890,-11142.20603586,0.00013,2]
[325399265,1714825846904,-771.66730528,0.00013,2]
[325399266,1714825846917,-832.68887547,0.00013,2]
[325399318,1714827032415,-445.33339209,9.676e-05,2]
[325399319,1714827032427,-498.34120956,9.677e-05,2]
[325399320,1714827032437,-2218.04036593,9.678e-05,2]
[325399321,1714827032447,-536.56930293,9.678e-05,2]
[325399322,1714827032457,-2217.88907972,9.678e-05,2]
[325399323,1714827032467,-150.0,9.683e-05,2]
[325399324,1714827032479,-604.0,9.689e-05,2]
[325399325,1714827032490,-2543.7567469,9.75e-05,2]
[325399326,1714827032500,-1136.43,0.00011479,2]
[325399327,1714827032509,-200.0,0.0001149,2]
[325399328,1714827032521,-1500.0,0.00011494,2]
[325399329,1714827032531,-250.0,0.00011496,2]
[325399330,1714827032541,-183.74,0.00011515,2]
[325399331,1714827032551,-1206.77,0.00011517,2]
[325399332,1714827032563,-5730.17,0.00011585,2]
[325399333,1714827032573,-499.99,0.00011596,2]
[325399334,1714827032584,-643.69,0.00011618,2]
[325399335,1714827032595,-427.78,0.00011761,2]
[325399336,1714827032605,-159.76,0.00011885,2]
[325399337,1714827032616,-1000.0,0.00012006,2]
[325399338,1714827032627,-3168.71929079,0.00012348,2]
[325399339,1714827032637,-1000.0,0.000124,2]
[325399340,1714827032646,-17538.1256,0.000124,2]
[325399341,1714827032656,-22997.98252269,0.000124,2]
[325399342,1714827032673,-2193.07254094,0.000124,2]
[325399343,1714827032685,-1335.28216049,0.000124,2]
[325399344,1714827032697,-283.63500843,0.000124,2]
[325399345,1714827032722,-1064.71783951,0.000124,2]
[325399346,1714827032734,-253.083484,0.000124,2]
[325399347,1714827032756,-12391.17805228,0.000124,2]
[325399348,1714827032768,-2590.48056729,0.000124,2]
[325399356,1714827038669,-30181.89862437,0.000124,2]
[325399357,1714827038679,-264.3,0.000124,2]
[325399358,1714827038690,-25708.0288,0.0001267,2]
[325399359,1714827038699,-1560.03868352,0.00012711,2]
[325399360,1714827038710,-150.0,0.00012726,2]
[325399361,1714827038720,-3647.19944605,0.00012727,2]
[325399362,1714827038731,-150.0,0.00012734,2]
[325399363,1714827038740,-150.0,0.00012737,2]
[325399364,1714827038750,-150.0,0.00012737,2]
[325399365,1714827038760,-150.0,0.00012738,2]
[325399366,1714827038770,-463.76718743,0.00012739,2]
[325399367,1714827038780,-150.0,0.0001274,2]
[325399368,1714827038790,-150.0,0.0001274,2]
[325399369,1714827038801,-408.81148644,0.00012741,2]
[325399370,1714827038810,-642.0540596,0.00012742,2]
[325399371,1714827038820,-150.0,0.00012742,2]
[325399372,1714827038830,-150.0,0.00012742,2]
[325399373,1714827038840,-171.28,0.00012743,2]
[325399374,1714827038850,-150.0,0.00012746,2]
[325399375,1714827038860,-150.0,0.00012748,2]
[325399376,1714827038870,-150.0,0.00012749,2]
[325399377,1714827038880,-150.0,0.0001275,2]
[325399378,1714827038889,-150.0,0.00012758,2]
[325399379,1714827038899,-150.0,0.00012758,2]
[325399380,1714827038909,-373.81,0.0001276,2]
[325399381,1714827038918,-150.0,0.00012761,2]
[325399383,1714827038927,-232.1427,0.00012768,2]
[325399385,1714827038937,-1879.0611,0.00012768,2]
[325399387,1714827038947,-150.0,0.0001277,2]
[325399389,1714827038956,-116847.46946806,0.0001277,2]
[325399391,1714827038969,-7792.97893562,0.0001277,2]
[325399393,1714827038981,-358.40699688,0.0001277,2]
[325399397,1714827040493,-887.89668078,0.0001277,2]
[325399398,1714827040504,-12281.394,0.0001277,2]
[325399399,1714827040538,-886.45947666,0.0001277,2]
[325399400,1714827042257,-386.7847,0.0001277,2]
[325399401,1714827042279,-858.21772121,0.0001277,2]
[325399402,1714827042370,-866.57163133,0.0001277,2]
[325399403,1714827042391,-103833.82038946,0.0001277,2]
[325399404,1714827042402,-150.0,0.00012773,2]
[325399405,1714827042412,-150.0,0.00012782,2]
[325399406,1714827042422,-150.0,0.00012787,2]
[325399407,1714827042431,-150.0,0.00012789,2]
[325399408,1714827042441,-150.0,0.0001279,2]
[325399409,1714827042451,-150.0,0.00012796,2]
[325399410,1714827042461,-150.0,0.00012796,2]
[325399411,1714827042471,-1100.0,0.000128,4]
[325399412,1714827042481,-7500.0,0.000128,2]
[325399413,1714827042491,-150.0,0.00012801,2]
[325399414,1714827042501,-150.0,0.00012802,2]
[325399415,1714827042511,-150.0,0.00012802,2]
[325399416,1714827042521,-150.0,0.00012803,2]
[325399417,1714827042531,-150.0,0.00012803,2]
[325399418,1714827042541,-150.0,0.00012803,2]
[325399419,1714827042552,-150.0,0.00012806,2]
[325399421,1714827042562,-150.0,0.00012806,2]
[325399422,1714827042572,-150.0,0.00012808,2]
[325399423,1714827042582,-150.0,0.00012811,2]
[325399424,1714827042591,-150.0,0.0001282,2]
[325399425,1714827042601,-150.0,0.00012821,2]
[325399426,1714827042611,-150.0,0.00012822,2]
[325399427,1714827042620,-150.0,0.00012826,2]
[325399428,1714827042630,-150.0,0.00012826,2]
[325399429,1714827042640,-150.0,0.00012827,2]
[325399430,1714827042650,-150.0,0.00012831,2]
[325399431,1714827042660,-150.0,0.00012842,2]
[325399432,1714827042670,-150.0,0.00012844,2]
[325399433,1714827042680,-150.0,0.0001285,2]
[325399434,1714827042690,-150.0,0.00012855,2]
[325399435,1714827042700,-150.0,0.00012857,2]
[325399436,1714827042709,-373.81,0.00012858,2]
[325399437,1714827042719,-150.0,0.00012859,2]
[325399438,1714827042730,-150.0,0.0001286,2]
[325399439,1714827042739,-150.0,0.00012863,2]
[325399440,1714827042749,-150.0,0.00012863,2]
[325399441,1714827042759,-150.0,0.00012863,2]
[325399442,1714827042769,-155.74584434,0.00012866,2]
[325399443,1714827042779,-150.0,0.00012866,2]
[325399444,1714827042790,-1211.30074394,0.00012867,2]
[325399445,1714827042800,-170.13823566,0.00012868,2]
[325399446,1714827042810,-308.29578336,0.00012868,2]
[325399447,1714827042819,-156.17510927,0.00012868,2]
[325399448,1714827042829,-191.03468,0.00012868,2]
[325399449,1714827042839,-32867.45356662,0.00012868,2]
[325399450,1714827042849,-2356.23677028,0.00012868,2]
[325399451,1714827042858,-297.98372073,0.00012868,2]
[325399452,1714827042868,-1000.0,0.00012868,2]
[325399453,1714827042878,-11427.55860354,0.00012868,2]
[325399454,1714827042888,-1244.4085051,0.00012869,2]
[325399455,1714827042898,-328.98309878,0.00012869,2]
[325399456,1714827042908,-341.44855021,0.00012869,2]
[325399457,1714827042918,-37007.86185421,0.0001287,2]
[325399458,1714827042928,-150.0,0.0001287,2]
[325399459,1714827042938,-150.0,0.00012872,2]
[325399460,1714827042948,-150.0,0.00012872,2]
[325399461,1714827042958,-150.0,0.00012872,2]
[325399462,1714827042968,-150.0,0.00012873,2]
[325399463,1714827042980,-150.0,0.00012875,2]
[325399464,1714827042990,-150.0,0.00012881,2]
[325399465,1714827043000,-150.0,0.00012881,2]
[325399466,1714827043009,-150.0,0.00012882,2]
[325399467,1714827043020,-150.0,0.00012886,2]
[325399468,1714827043030,-150.0,0.00012888,2]
[325399469,1714827043039,-373.81,0.0001289,2]
[325399470,1714827043050,-150.0,0.00012891,2]
[325399471,1714827043060,-200.0,0.00012895,2]
[325399472,1714827043070,-200.0,0.00012896,2]
[325399473,1714827043079,-1000.0,0.00012896,2]
[325399474,1714827043089,-200.0,0.00012896,2]
[325399475,1714827043099,-500.0,0.00012896,2]
[325399476,1714827043109,-150.0,0.00012897,2]
[325399477,1714827043118,-167.04192647,0.00012898,2]
[325399478,1714827043127,-3963.6683,0.00012898,2]
[325399480,1714827043137,-57253.18217151,0.00012898,2]
[325399485,1714827043828,-1100.0,0.00012898,2]
[325399526,1714827046489,-511.64999995,0.00012769,2]
[325399538,1714827719814,202.9,0.0002,30]
[325399554,1714828231505,-536.56930293,9.325e-05,2]
[325399555,1714828231516,-377.29102073,9.326e-05,2]
[325399556,1714828231525,-498.34120956,9.326e-05,2]
[325399557,1714828231535,-185.86,9.336e-05,2]
[325399558,1714828231545,-2543.7567469,9.577e-05,2]
[325399560,1714828231555,-250.0,0.00011621,2]
[325399561,1714828231564,-1000.0,0.00011633,2]
[325399563,1714828231581,-6045.56,0.0001167,4]
[325399564,1714828231594,-150.0,0.00011688,2]
[325399565,1714828231603,-159.78,0.00011689,2]
[325399566,1714828231612,-299.34,0.00011719,2]
[325399567,1714828231621,-1084.67,0.00011719,2]
[325399568,1714828231630,-341.93,0.00011719,2]
[325399569,1714828231641,-354.05,0.0001183,2]
[325399570,1714828231653,-354.05,0.00011862,2]
[325399571,1714828231663,-354.05,0.00011895,2]
[325399572,1714828231676,-354.05,0.00011927,2]
[325399573,1714828231687,-354.05,0.00011959,2]
[325399574,1714828231697,-354.05,0.00011992,2]
[325399575,1714828231706,-354.05,0.00012024,2]
[325399576,1714828231716,-1388.71856758,0.00012035,2]
[325399577,1714828231725,-354.05,0.00012057,2]
[325399578,1714828231735,-147.32978317,0.00012089,2]
[325399579,1714828231747,-206.72021683,0.00012089,2]
[325399580,1714828231756,-273.83838669,0.00012122,2]
[325399581,1714828231785,-80.21161331,0.00012122,2]
[325399582,1714828231795,-233.26938676,0.00012154,2]
[325399583,1714828231810,-120.78061324,0.00012154,2]
[325399585,1714828231824,-354.05,0.00012187,2]
[325399587,1714828231834,-354.05,0.00012219,2]
[325399589,1714828231844,-176.08,0.00012237,2]
[325399591,1714828231853,-354.05,0.00012251,2]
[325399592,1714828231862,-354.05,0.00012284,2]
[325399593,1714828231871,-354.05,0.00012316,2]
[325399594,1714828231881,-354.05,0.00012349,2]
[325399595,1714828231890,-354.05,0.00012381,2]
[325399596,1714828231900,-354.05,0.00012414,2]
[325399597,1714828231909,-354.05,0.00012446,2]
[325399598,1714828231918,-1100.0,0.000125,4]
[325399599,1714828231928,-2200.0,0.000126,4]
[325399600,1714828231937,-1127.8249008,0.0001264,2]
[325399601,1714828231946,-3155.1,0.00012668,2]
[325399602,1714828231956,-155.24178953,0.00012668,2]
[325399603,1714828231965,-204.49787843,0.00012668,2]
[325399604,1714828231975,-982.72910362,0.00012668,2]
[325399605,1714828231987,-78.17257948,0.00012668,2]
[325399606,1714828231997,-965.1835974,0.00012668,2]
[325399607,1714828232007,-781.62148486,0.00012668,2]
[325399608,1714828232018,-1275.02233826,0.00012668,2]
[325399609,1714828232030,-107.80157795,0.00012668,2]
[325399610,1714828232039,-364.09927495,0.00012669,2]
[325399611,1714828232049,-2093.38769505,0.0001267,2]
[325399612,1714828232073,-835.95699381,0.00011658,2]
[325399613,1714828232093,-305.0,0.00011658,2]
[325399614,1714828232131,-1989.26300619,0.00011658,2]
[325399615,1714828232143,-17543.13960495,0.0001267,2]
[325399616,1714828232152,-3053.63277869,0.0001267,2]
[325399620,1714828237722,-6760.48094146,0.0001267,2]
[325399621,1714828237737,-272.97766749,0.0001267,2]
[325399622,1714828237776,-396.85309716,0.0001267,2]
[325399623,1714828237808,-1922.99,0.0001267,2]
[325399675,1714828241203,-361.32,0.0001267,2]
[325399676,1714828241215,-432.917,0.0001267,2]
[325399677,1714828241256,-1241.6563152,0.0001267,2]
[325399678,1714828241267,-3638.8266,0.0001267,2]
[325399679,1714828241277,-148.32335141,0.000127,4]
[325399680,1714828241288,-3251.67664859,0.000127,4]
[325399681,1714828241298,-150.0,0.00012725,2]
[325399682,1714828241307,-150.0,0.00012726,2]
[325399683,1714828241317,-150.0,0.00012728,2]
[325399684,1714828241328,-150.0,0.00012741,2]
[325399685,1714828241337,-150.0,0.00012746,2]
[325399686,1714828241346,-150.0,0.00012751,2]
[325399687,1714828241355,-150.0,0.00012755,2]
[325399688,1714828241364,-150.0,0.00012764,2]
[325399689,1714828241374,-150.0,0.00012767,2]
[325399690,1714828241384,-12.76274653,0.00012769,2]
[325399691,1714828241393,-150.0,0.00012771,2]
[325399692,1714828241403,-150.0,0.0001278,2]
[325399693,1714828241413,-150.0,0.00012781,2]
[325399694,1714828241423,-150.0,0.00012784,2]
[325399695,1714828241433,-150.0,0.00012786,2]
[325399696,1714828241442,-89.66960488,0.00012789,2]
[325399711,1714828242699,-60.33039512,0.00012789,2]
[325399712,1714828242710,-150.0,0.0001279,2]
[325399713,1714828242720,-150.0,0.00012795,2]
[325399714,1714828242732,-318.42018278,0.000128,2]
[325399715,1714828242744,-385.94328751,0.000128,2]
[325399716,1714828242765,-1455.24432971,0.000128,2]
[325399717,1714828242775,-565.8337,0.000128,2]
[325399718,1714828242784,-3033.715094,0.000128,2]
[325399719,1714828242856,-1033.00516296,0.000128,2]
[325399732,1714828245536,-766.37631373,0.000128,2]
[325399734,1714828245549,-1188.90184258,0.000128,2]
[325399739,1714828245653,-19074.00974222,0.000128,2]
[325399740,1714828245665,-641.75564451,0.000128,2]
[325399741,1714828245675,-5108.3085,0.000128,2]
[325399742,1714828245691,-4500.0,0.000128,4]
[325399743,1714828245702,-150.0,0.00012804,2]
[325399744,1714828245712,-150.0,0.0001281,2]
[325399745,1714828245720,-150.0,0.0001281,2]
[325399746,1714828245730,-150.0,0.0001281,2]
[325399747,1714828245739,-150.0,0.00012813,2]
[325399748,1714828245748,-150.0,0.0001282,2]
[325399749,1714828245759,-150.0,0.00012821,2]
[325399750,1714828245769,-150.0,0.00012833,2]
[325399751,1714828245779,-150.0,0.00012833,2]
[325399752,1714828245788,-150.0,0.00012839,2]
[325399753,1714828245797,-150.0,0.00012846,2]
[325399754,1714828245807,-150.0,0.00012851,2]
[325399755,1714828245817,-150.0,0.00012852,2]
[325399756,1714828245826,-150.0,0.00012853,2]
[325399757,1714828245837,-150.0,0.00012853,2]
[325399758,1714828245847,-150.0,0.00012862,2]
[325399759,1714828245857,-150.0,0.00012864,2]
[325399760,1714828245866,-150.0,0.00012881,2]
[325399761,1714828245875,-150.0,0.00012884,2]
[325399762,1714828245884,-150.0,0.00012886,2]
[325399763,1714828245893,-150.0,0.00012887,2]
[325399764,1714828245903,-1053.0314,0.00012887,2]
[325399765,1714828245911,-150.0,0.00012889,2]
[325399766,1714828245921,-150.0,0.0001289,2]
[325399767,1714828245931,-150.0,0.00012892,2]
[325399769,1714828245940,-200.0,0.00012895,2]
[325399770,1714828245950,-1000.0,0.00012895,2]
[325399771,1714828245960,-200.0,0.00012896,2]
[325399772,1714828245969,-1000.0,0.00012896,2]
[325399773,1714828245978,-1000.0,0.00012896,2]
[325399774,1714828245987,-500.0,0.00012896,2]
[325399775,1714828245996,-609.3164518,0.00012896,2]
[325399776,1714828246006,-150.0,0.00012897,2]
[325399777,1714828246015,-200.0,0.00012898,2]
[325399778,1714828246025,-3000.0,0.00012898,2]
[325399779,1714828246034,-150.0,0.00012899,2]
[325399780,1714828246043,-150.0,0.00012899,2]
[325399781,1714828246054,-150.0,0.000129,2]
[325399782,1714828246063,-12864.58841855,0.000129,2]
[325399783,1714828246072,-2842.83059621,0.000129,4]
[325399784,1714828246087,-1080.03515228,0.000129,4]
[325399785,1714828246134,-1677.13425151,0.000129,4]
[325399786,1714828246143,-501.12577935,0.000129,2]
[325399787,1714828246153,-1612.81433416,0.000129,2]
[325399788,1714828246163,-3751.7856,0.000129,2]
[325399789,1714828246173,-150.0,0.00012902,2]
[325399790,1714828246182,-150.0,0.00012913,2]
[325399791,1714828246191,-150.0,0.00012914,2]
[325399792,1714828246200,-150.0,0.00012914,2]
[325399793,1714828246209,-150.0,0.00012915,2]
[325399794,1714828246219,-150.0,0.00012929,2]
[325399795,1714828246229,-150.0,0.00012929,2]
[325399796,1714828246238,-150.0,0.00012941,2]
[325399797,1714828246247,-150.0,0.00012945,2]
[325399798,1714828246256,-150.0,0.00012952,2]
[325399799,1714828246266,-150.0,0.00012956,2]
[325399800,1714828246275,-150.0,0.00012957,2]
[325399801,1714828246284,-150.0,0.00012965,2]
[325399802,1714828246293,-150.0,0.00012968,2]
[325399803,1714828246303,-150.0,0.0001297,2]
[325399804,1714828246312,-168.72916332,0.00012974,2]
[325399805,1714828246321,-150.0,0.00012974,2]
[325399806,1714828246331,-150.0,0.00012977,2]
[325399807,1714828246341,-150.0,0.00012984,2]
[325399808,1714828246350,-150.0,0.00012986,2]
[325399809,1714828246359,-150.0,0.00012986,2]
[325399810,1714828246368,-2231.98446726,0.00012986,2]
[325399811,1714828246377,-261.67,0.00012988,2]
[325399812,1714828246386,-174.5215913,0.00012989,2]
[325399813,1714828246395,-2661.3437118,0.00012989,2]
[325399814,1714828246419,-2719.0439752,0.00012989,2]
[325399815,1714828246430,-2275.62291585,0.00012989,2]
[325399816,1714828315893,-539.90058201,0.00012657,2]
[325399817,1714828315923,-160.71,0.00012658,2]
[325399818,1714828315949,-1102.71089836,0.00012729,2]
[325399819,1714828315975,-1078.24630451,0.00012729,2]
[325399820,1714828316000,-378.53151406,0.00012798,2]
[325399821,1714828316027,-406.52220959,0.00012799,2]
[325399822,1714828316054,-5306.0554,0.000128,2]
[325399823,1714828316081,-3874.0748,0.00012889,2]
[325399824,1714828316107,-448.68439298,0.000129,2]
[325399825,1714828316134,-1042.20115503,0.000129,2]
[325399826,1714828316163,-259.06617738,0.00012988,2]
[325399827,1714828316190,-391.70724268,0.00012989,2]
[325399828,1714828316218,-545.824829,0.00012989,2]
[325399829,1714828316245,-7748.8465587,0.00012989,2]
[325399830,1714828316273,-24787.8456738,0.00012989,2]
[325399831,1714828316300,-295.8719374,0.00012989,2]
[325399832,1714828316327,-2362.54791,0.00012989,2]